bitfinex/quotes_ETHUSD_20251009
["timestamp","ask_amount","ask_price","bid_price","bid_amount"]
[1760021154679,2.31355689,4322.4,4321.5,2.31400276]
[1760021154880,0.43,4322.9,4321.2,0.8835]
[1760021155130,1.92,4322.8,4321.7,2.31385349]
[1760021155282,0.43,4322.9,4321.7,2.31385349]
[1760021155476,2.31353744,4322.4,4321.6,11.64094678]
[1760021155706,2.31358539,4322.3,4321.6,9.327]
[1760021155906,2.31336226,4322.8,4321.6,9.327]
[1760021156107,2.31336226,4322.8,4321.4,2.31405692]
[1760021156108,2.31363405,4322.3,4321.4,2.31405692]
[1760021156311,2.31364028,4322.2,4321.4,2.31405692]
[1760021156515,2.31364028,4322.2,4321.5,2.31400688]
[1760021156814,0.4238,4322.3,4321.5,2.31400688]
[1760021157016,2.31363657,4322.2,4321.1,6.917]
[1760021157190,2.31381061,4321.9,4321.2,0.6918]
[1760021157390,2.31381061,4321.9,4321.3,0.02314118]
[1760021158079,0.4238,4322.3,4321.2,0.6918]
[1760021158279,0.2287,4321.8,4321.1,1.044]
[1760021158532,0.4217,4322.7,4321.1,1.044]
[1760021158818,2.31375861,4322.0,4321.2,2.31416176]
[1760021159113,0.1859,4321.9,4321.3,5.407]
[1760021159428,0.1859,4321.9,4321.0,0.001]
[1760021159429,0.4642,4321.8,4321.0,0.001]
[1760021159716,2.31422554,4321.1,4321.0,0.001]
[1760021160321,2.77842554,4321.1,4321.0,0.001]
[1760021160633,5.33202554,4321.1,4321.0,0.001]
[1760021161182,5.33202554,4321.1,4320.5,0.001]
[1760021161183,0.6336,4321.0,4320.5,0.001]
[1760021161384,16.87992918,4320.7,4320.5,0.001]
[1760021161584,7.27503978,4320.7,4320.5,0.001]
[1760021161827,7.73823978,4320.7,4320.5,0.001]
[1760021162114,5.33123978,4320.7,4320.5,0.001]
[1760021162297,2.407,4321.4,4320.5,0.001]
[1760021162617,2.77763978,4320.7,4320.5,0.001]
[1760021163020,1.92,4320.9,4320.5,0.001]
[1760021163185,0.4632,4320.7,4320.5,0.001]
[1760021163386,6.909,4321.3,4320.5,0.001]
[1760021163591,1.92,4321.2,4320.5,0.001]
[1760021163788,4.2341827,4321.2,4320.5,0.001]
[1760021164016,2.31432103,4321.0,4320.5,0.001]
[1760021164222,1.92,4321.2,4320.5,0.001]
[1760021164385,1.92,4321.2,4320.5,2.3155379]
[1760021164584,4.23417866,4321.2,4320.5,0.001]
[1760021164827,0.1152,4320.7,4320.5,0.001]
[1760021165088,2.31378609,4322.0,4320.5,0.001]
[1760021165089,12.0118894,4322.7,4320.5,0.001]
[1760021165424,2.31393836,4321.7,4320.9,2.31429234]
[1760021165593,2.7769884,4322.0,4321.0,0.02314279]
[1760021165791,2.7769884,4322.0,4321.2,2.31413264]
[1760021166027,1.438,4322.2,4320.6,0.7157]
[1760021166028,0.8223,4321.9,4320.6,0.001]
[1760021166259,2.31440027,4320.8,4320.6,0.001]
[1760021166460,0.6492,4321.9,4320.6,0.001]
[1760021166644,1.8958,4322.2,4320.7,0.4738]
[1760021166844,2.31391028,4321.7,4320.7,3.34125389]
[1760021167176,13.77754482,4323.1,4320.7,3.34125389]
[1760021167177,0.4578,4322.8,4320.8,0.4738]
[1760021167523,2.31381032,4321.9,4320.9,3.974]
[1760021167748,2.31374642,4322.0,4320.9,2.31433147]
[1760021167948,0.6336,4322.6,4320.8,6.075]
[1760021167949,0.6336,4322.6,4320.8,8.482]
[1760021168234,2.313999,4321.6,4320.8,8.482]
[1760021168423,0.4551,4322.0,4321.2,2.31413945]
[1760021168756,2.31381422,4321.9,4321.1,2.31418064]
[1760021168930,2.31368417,4322.2,4321.3,2.31407808]
[1760021169125,0.4526,4322.4,4320.8,8.482]
[1760021169326,2.31369223,4322.1,4321.3,2.31410129]
[1760021169523,0.4526,4322.4,4321.0,2.31424949]
[1760021169727,2.31370119,4322.1,4321.0,2.31424949]
[1760021169927,0.4526,4322.4,4320.9,0.89568]
[1760021170128,0.6336,4322.7,4320.9,0.89568]
[1760021170329,2.31410493,4321.4,4320.6,0.001]
[1760021170529,0.4526,4322.3,4320.8,2.31438622]
[1760021170729,0.0062,4322.9,4320.9,0.49694332]
[1760021170979,2.31331544,4322.8,4320.6,0.001]
[1760021171128,2.31407471,4321.4,4320.6,0.001]
[1760021171327,2.31407471,4321.4,4320.7,0.48335365]
[1760021171558,2.313412,4322.7,4320.7,0.95715365]
[1760021171865,0.4642,4322.8,4320.9,4.23433266]
[1760021172030,0.0062,4322.9,4320.6,0.001]
[1760021172031,0.4642,4322.7,4320.6,0.001]
[1760021172360,2.31396118,4321.6,4320.9,2.31432703]
[1760021172565,2.31390984,4321.7,4321.0,0.6443327]
[1760021172728,2.31390984,4321.7,4321.0,2.95859654]
[1760021172928,2.31385648,4321.8,4321.0,2.95859654]
[1760021173153,0.4642,4322.2,4320.9,2.31431301]
[1760021173355,2.3814,4322.1,4320.6,0.001]
[1760021173563,2.31374363,4322.0,4320.6,0.001]
[1760021173767,2.3814,4322.1,4320.6,2.31544257]
[1760021173966,2.31401877,4321.5,4320.7,2.3144201]
[1760021174175,1.92,4321.6,4320.6,0.001]
[1760021174371,2.3138388,4321.9,4320.6,0.001]
[1760021174539,2.407,4323.3,4320.7,0.4738]
[1760021174739,0.4587,4323.0,4321.5,2.31396739]
[1760021175047,0.002,4323.4,4321.7,2.31390425]
[1760021175247,0.1172,4323.2,4322.8,2.50581544]
[1760021175449,0.002,4323.2,4322.8,11.82294859]
[1760021175776,0.002,4323.2,4322.8,12.38881544]
[1760021176270,0.002,4323.2,4322.8,12.19831544]
[1760021176445,0.002,4323.2,4322.8,4.37273609]
[1760021176652,0.0054,4322.9,4322.8,12.19731544]
[1760021177932,0.0054,4322.9,4322.8,14.11731544]
[1760021178539,1e-08,4323.2,4322.9,1.92]
[1760021178870,1e-08,4323.2,4323.1,2.31315491]
[1760021179072,1e-08,4323.2,4323.1,4.34835491]
[1760021179268,1e-08,4323.2,4323.1,6.65719124]
[1760021179648,1e-08,4323.2,4323.1,0.589]
[1760021179877,1e-08,4323.2,4323.1,4.48]
[1760021180393,1e-08,4323.2,4323.1,7.29008645]
[1760021180593,1e-08,4323.2,4323.1,7.38215491]
[1760021181765,1e-08,4323.2,4323.1,0.589]
[1760021181954,1e-08,4323.2,4323.1,12.18015491]
[1760021182156,1e-08,4323.2,4323.1,13.63180691]
[1760021182358,0.002,4323.7,4323.2,2.3131014]
[1760021182359,1e-08,4323.7,4323.2,2.3131014]
[1760021182570,1e-08,4323.7,4323.6,4.3480874]
[1760021182879,1e-08,4323.7,4323.6,13.6220874]
[1760021183177,1e-08,4323.7,4323.6,14.0958874]
[1760021183480,1e-08,4323.7,4323.6,16.34765785]
[1760021184049,1e-08,4323.7,4323.6,7.07365785]
[1760021184250,1e-08,4323.7,4323.6,16.35165785]
[1760021185654,1e-08,4323.9,4323.7,4.86643391]
[1760021185855,1e-08,4323.9,4323.8,4.88950822]
[1760021186061,1e-08,4323.9,4323.8,7.59195087]
[1760021188272,1e-08,4323.9,4323.8,7.11158042]
[1760021188478,1e-08,4323.9,4323.8,13.97158042]
[1760021190557,1e-08,4323.9,4323.8,21.18558042]
[1760021190780,1e-08,4323.9,4323.8,4.70658042]
[1760021191087,1e-08,4323.9,4323.8,23.58558042]
[1760021191308,1e-08,4323.9,4323.8,21.2728]
[1760021191482,2.77782694,4323.9,4323.8,2.24947045]
[1760021191802,2.31314254,4323.2,4322.4,3.305]
[1760021192009,2.94639688,4323.8,4322.4,3.305]
[1760021192010,0.4625,4323.4,4322.4,3.305]
[1760021192476,2.31314737,4323.2,4322.4,3.305]
[1760021192671,2.97841995,4323.9,4322.4,3.305]
[1760021192672,0.20120001,4323.9,4322.4,5.61852348]
[1760021193001,1e-08,4323.9,4322.5,0.4523]
[1760021193199,1e-08,4323.9,4322.6,0.02313422]
[1760021193401,1e-08,4323.9,4322.5,0.4523]
[1760021193602,1e-08,4323.9,4323.4,2.31298495]
[1760021193807,1e-08,4323.9,4323.5,6.898]
[1760021194373,1e-08,4323.9,4323.6,2.33601602]
[1760021194602,1e-08,4323.9,4323.6,0.02312887]
[1760021195180,1e-08,4323.9,4323.7,2.76513391]
[1760021195501,1e-08,4323.9,4323.8,2.31278042]
[1760021195702,1e-08,4323.9,4323.8,2.42798042]
[1760021195907,1e-08,4323.9,4323.8,2.88028042]
[1760021197118,1e-08,4323.9,4323.8,2.76508042]
[1760021197414,1e-08,4323.9,4323.8,4.04421014]
[1760021197590,1e-08,4323.9,4323.8,4.02108234]
[1760021197793,1e-08,4323.9,4323.8,2.76508042]
[1760021197980,1e-08,4323.9,4323.8,9.58808042]
[1760021198618,1e-08,4323.9,4323.8,10.22168042]
[1760021199306,1e-08,4324.2,4324.1,2.94621996]
[1760021199503,0.002,4324.6,4324.5,2.31240605]
[1760021199504,0.00120001,4324.6,4324.5,2.31240605]
[1760021199704,0.00120001,4324.6,4324.5,9.72901905]
[1760021199904,0.00120001,4324.6,4324.5,10.15819499]
[1760021200286,0.00120001,4324.6,4324.5,3.22719499]
[1760021200487,0.00120001,4324.6,4324.5,12.56119499]
[1760021200715,0.00120001,4324.6,4324.5,12.09870605]
[1760021203124,0.00120001,4324.6,4324.5,12.73230605]
[1760021203325,0.00120001,4324.6,4324.5,10.4199]
[1760021203529,0.00120001,4324.6,4319.8,1.11694068]
[1760021203530,0.45520001,4324.6,4322.8,2.405]
[1760021203747,0.00120001,4324.6,4322.8,2.405]
[1760021203948,0.00120001,4324.6,4322.9,2.187]
[1760021203949,2.31262667,4324.1,4322.9,2.187]
[1760021204250,0.23126267,4324.0,4323.0,0.02313208]
[1760021204561,0.00120001,4324.6,4323.0,0.4523]
[1760021204710,0.00120001,4324.6,4323.1,19.2]
[1760021204912,1.92120001,4324.6,4323.1,19.2]
[1760021205114,1.92120001,4324.6,4323.0,0.4523]
[1760021205115,0.00120001,4324.6,4323.0,0.4523]
[1760021205334,0.00120001,4324.6,4323.1,4.382]
[1760021205539,0.23871001,4324.6,4323.4,2.31296933]
[1760021205737,0.23871001,4324.6,4323.8,2.31276126]
[1760021206051,0.23871001,4324.6,4323.1,9.572]
[1760021206052,0.4477,4324.5,4323.1,9.572]
[1760021206242,2.31262014,4324.1,4323.1,9.572]
[1760021206412,2.31268025,4324.0,4323.1,9.572]
[1760021206835,4.2325953,4324.2,4323.1,9.572]
[1760021207021,4.23249136,4324.4,4323.1,9.572]
[1760021207347,0.00120001,4324.6,4322.2,2.405]
[1760021207348,0.1152,4323.7,4322.2,2.405]
[1760021207596,0.6534,4323.6,4321.9,0.001]
[1760021207743,0.1152,4322.7,4322.4,0.49]
[1760021208099,0.1152,4322.7,4322.5,0.02313475]
[1760021208255,1.92,4324.0,4322.5,0.02313475]
[1760021208256,0.2127,4323.9,4322.5,0.02313475]
[1760021208453,0.1152,4323.2,4322.6,2.31342247]
[1760021208780,0.215,4322.7,4322.1,0.005]
[1760021208980,0.6336,4324.0,4322.1,0.005]
[1760021208981,11.6980436,4325.5,4322.1,2.536]
[1760021209294,0.4384,4323.9,4322.4,0.21793529]
[1760021209457,0.63980001,4324.9,4322.5,0.4469]
[1760021209458,0.43740001,4324.6,4322.5,0.4469]
[1760021209645,0.43740001,4324.6,4322.6,7.01377]
[1760021209849,2.31253066,4324.3,4323.1,2.31314531]
[1760021210082,2.31253066,4324.3,4322.3,0.001]
[1760021210083,6.4981,4324.2,4322.3,0.001]
[1760021210284,0.2216,4323.2,4322.3,0.001]
[1760021210993,1.92,4323.3,4322.3,0.001]
[1760021211179,2.31352548,4322.5,4322.3,0.001]
[1760021211358,0.4298,4323.1,4322.3,0.001]
[1760021211689,2.74332952,4322.4,4322.3,0.001]
[1760021211986,2.31363657,4322.2,4322.1,0.005]
[1760021212192,4.86723657,4322.2,4322.1,0.005]
[1760021212490,6.48960042,4322.2,4322.1,0.005]
[1760021212989,4.17596385,4322.2,4322.1,0.005]
[1760021213288,2.3489,4322.2,4322.1,0.005]
[1760021213490,5.29613657,4322.2,4322.1,0.0007]
[1760021213664,7.70213657,4322.2,4322.1,0.0007]
[1760021214990,7.70213657,4322.2,4321.1,0.005]
[1760021214991,2.5536,4321.5,4321.1,0.005]
[1760021215202,5.05637198,4321.2,4321.1,0.005]
[1760021215386,6.789816,4321.2,4321.1,0.005]
[1760021215589,6.789816,4321.2,4320.1,0.006]
[1760021215590,17.79648762,4321.2,4320.1,0.0008]
[1760021215774,17.79648762,4321.2,4319.6,0.001]
[1760021215775,0.6336,4320.1,4319.6,1e-08]
[1760021215975,2.31518996,4319.3,4319.2,0.001]
[1760021216274,1.92,4319.3,4319.2,0.001]
[1760021217193,0.6336,4320.8,4319.2,0.001]
[1760021217194,0.6054,4321.2,4319.8,2.31488441]
[1760021217399,0.6054,4321.2,4319.2,0.4479]
[1760021217400,0.6054,4321.2,4319.6,2.406]
[1760021217601,0.4168,4321.2,4319.7,2.684]
[1760021217902,0.1049,4322.0,4319.2,0.001]
[1760021217903,0.4145,4321.1,4319.2,0.001]
[1760021218083,0.23345,4321.0,4319.3,1.084]
[1760021218284,1.92,4321.0,4319.3,1.084]
[1760021218484,2.72874587,4321.1,4319.3,1.084]
[1760021218485,0.4145,4321.1,4319.4,2.31513636]
[1760021218667,0.4145,4321.7,4319.5,0.4504]
[1760021218868,0.1152,4320.6,4320.0,2.31479135]
[1760021219184,0.4145,4321.7,4320.0,0.6336]
[1760021219372,0.005,4321.9,4320.2,0.6336]
[1760021219575,0.005,4321.9,4320.3,0.02314654]
[1760021219775,0.005,4321.9,4320.2,0.6336]
[1760021219776,0.005,4321.9,4321.7,2.3138987]
[1760021219977,0.005,4321.9,4321.8,2.4291385]
[1760021220190,0.005,4321.9,4321.8,4.30740234]
[1760021220395,0.005,4321.9,4321.8,4.96414084]
[1760021220396,1e-08,4321.9,4321.8,4.96414084]
[1760021220705,0.007,4323.9,4322.7,2.31332485]
[1760021220905,1e-08,4322.9,4322.8,12.83553315]
[1760021221210,0.007,4323.9,4323.8,0.6336]
[1760021221516,0.007,4323.9,4323.0,0.6336]
[1760021221867,2.31279787,4323.8,4322.5,2.31344955]
[1760021222112,0.23197979,4323.7,4322.1,10.5194]
[1760021222403,2.31294344,4323.5,4322.1,10.069]
[1760021222621,0.2275,4323.7,4321.6,9.97495779]
[1760021222828,1.92,4323.5,4321.7,0.6336]
[1760021223122,1.92,4323.4,4321.7,0.6336]
[1760021223324,1.92,4323.3,4321.7,0.6336]
[1760021223509,0.2275,4323.7,4321.9,0.6336]
[1760021223711,0.007,4323.9,4321.8,1.1151]
[1760021223712,0.007,4323.9,4322.5,0.6336]
[1760021223890,0.007,4323.9,4322.7,0.6336]
[1760021224310,0.007,4323.9,4322.9,0.6336]
[1760021224510,0.007,4323.9,4322.6,7.976]
[1760021224716,0.4299,4323.9,4321.8,1.5655]
[1760021224886,0.4299,4323.9,4322.2,2.31363417]
[1760021224887,2.31283391,4323.7,4322.2,2.31363417]
[1760021225086,0.4076,4323.8,4321.6,0.6336]
[1760021225087,0.4076,4323.8,4322.3,0.02313583]
[1760021225292,0.007,4323.9,4322.4,0.6336]
[1760021225595,1.92,4323.8,4321.0,11.547]
[1760021225793,1.92,4323.6,4322.4,2.31352905]
[1760021226128,1.92,4323.6,4321.7,0.6336]
[1760021226129,1.92,4323.6,4323.0,2.31316506]
[1760021226294,1.92,4323.6,4323.0,2.31320605]
[1760021226495,1.92,4323.6,4323.1,2.31315163]
[1760021226708,1.92,4323.6,4322.5,2.76386576]
[1760021227048,0.007,4323.9,4322.8,0.6336]
[1760021227329,0.007,4323.9,4323.8,0.6336]
[1760021227529,0.007,4323.9,4323.8,13.00950822]
[1760021227706,0.007,4323.9,4323.8,13.43678042]
[1760021228029,0.002,4324.4,4324.3,2.946113]
[1760021228328,0.002,4324.4,4324.3,2.96923813]
[1760021228632,0.002,4324.4,4324.3,3.94353678]
[1760021228927,0.002,4324.4,4324.3,0.6336]
[1760021229095,0.002,4324.4,4323.9,0.6336]
[1760021229295,0.002,4324.4,4323.8,10.04]
[1760021229519,0.002,4324.4,4323.9,0.1152]
[1760021229721,0.002,4324.4,4323.0,4.899]
[1760021229897,0.1152,4324.0,4323.3,0.1152]
[1760021230091,0.002,4324.4,4323.6,0.6336]
[1760021230292,0.002,4324.4,4324.0,2.31267345]
[1760021230541,0.002,4324.4,4322.5,1.34444658]
[1760021230707,0.002,4324.4,4324.1,2.42779738]
[1760021230912,0.002,4324.4,4324.1,0.1152]
[1760021231096,0.002,4324.4,4324.2,0.4504]
[1760021231426,0.002,4324.4,4324.3,2.312513]
[1760021231629,0.002,4324.4,4324.1,0.1152]
[1760021232040,0.5276,4324.3,4323.6,0.1152]
[1760021232246,0.70608,4324.3,4323.0,6.14378]
[1760021232454,2.62608,4324.3,4323.0,4.899]
[1760021232729,0.70608,4324.3,4323.2,2.31305028]
[1760021233032,0.002,4324.4,4323.3,1.10713047]
[1760021233211,0.002,4324.4,4324.1,2.31259592]
[1760021233543,0.002,4324.4,4324.3,2.312513]
[1760021233901,0.002,4324.4,4324.3,3.396513]
[1760021234101,0.002,4324.4,4324.3,5.316513]
[1760021234298,1e-08,4324.9,4324.8,2.94584565]
[1760021234528,0.002,4325.8,4325.1,2.31208526]
[1760021234714,0.002,4325.8,4325.7,2.94536456]
[1760021235115,0.002,4325.8,4325.7,3.39576456]
[1760021235335,0.002,4325.8,4325.7,3.96652569]
[1760021235553,0.002,4325.8,4322.8,2.964574]
[1760021235695,0.002,4325.8,4325.0,0.6336]
[1760021235900,0.002,4325.8,4324.8,0.4504]
[1760021235901,0.002,4325.8,4325.7,2.31176456]
[1760021236102,0.002,4325.8,4324.8,0.4504]
[1760021236400,0.002,4325.8,4324.9,0.6336]
[1760021236597,0.002,4325.8,4325.1,0.6336]
[1760021237432,0.002,4325.8,4325.7,2.31176456]
[1760021237655,0.002,4325.8,4325.7,2.94536456]
[1760021237805,0.002,4325.8,4325.7,3.39576456]
[1760021238525,0.002,4325.8,4325.7,5.31576456]
[1760021238835,0.002,4325.8,4325.7,7.07672551]
[1760021239627,0.002,4326.8,4326.3,2.94504395]
[1760021239828,0.002,4326.8,4326.3,12.91104395]
[1760021240031,0.002,4326.8,4326.3,13.36144395]
[1760021240232,0.002,4326.8,4326.3,15.28144395]
[1760021240559,0.005,4326.9,4326.3,15.28144395]
[1760021240560,1e-08,4326.9,4326.8,2.94477685]
[1760021241037,1e-08,4326.9,4326.8,3.39497685]
[1760021241440,1e-08,4326.9,4326.8,5.31497685]
[1760021241810,1e-08,4326.9,4326.8,15.27297685]
[1760021242005,1e-08,4326.9,4326.8,11.0418]
[1760021242229,1e-08,4326.9,4326.8,7.553]
[1760021242440,1e-08,4326.9,4326.8,7.6682]
[1760021242810,1e-08,4326.9,4326.8,10.61297685]
[1760021243041,1e-08,4326.9,4326.8,11.06317685]
[1760021243538,1e-08,4326.9,4326.8,9.97937685]
[1760021243708,1e-08,4326.9,4326.8,10.42957685]
[1760021243913,1e-08,4326.9,4326.8,12.33726204]
[1760021245463,1e-08,4326.9,4326.8,0.1152]
[1760021245633,0.00120001,4327.4,4326.6,2.543]
[1760021245839,0.00120001,4327.4,4326.1,0.4502]
[1760021246169,0.1152,4327.1,4326.4,7.6582]
[1760021246326,0.1152,4327.1,4326.5,0.02311337]
[1760021246530,0.11640001,4327.4,4326.6,0.1152]
[1760021246767,0.00120001,4327.4,4326.7,1.1069123]
[1760021246929,0.00120001,4327.4,4326.9,0.1152]
[1760021247126,0.00120001,4327.4,4327.0,0.6567107]
[1760021247330,0.00120001,4327.4,4327.2,2.4261632]
[1760021247526,0.00120001,4327.4,4327.3,2.3109098]
[1760021247727,0.00120001,4327.4,4327.3,3.3793098]
[1760021247981,0.00120001,4327.4,4327.3,4.48246078]
[1760021248731,0.00120001,4327.4,4327.2,0.1152]
[1760021249043,0.00120001,4327.4,4327.3,2.33401889]
[1760021249246,0.00120001,4327.4,4327.3,2.7457098]
[1760021249560,0.00120001,4327.4,4327.3,3.4945098]
[1760021249872,0.00120001,4327.4,4327.3,5.92161889]
[1760021250026,0.00120001,4327.4,4327.3,6.72177251]
[1760021251241,0.00120001,4327.4,4326.8,14.633084]
[1760021251242,0.00120001,4327.4,4326.8,0.001]
[1760021251447,2.3109741,4327.2,4326.8,0.001]
[1760021251679,2.31112343,4326.9,4326.8,0.001]
[1760021251969,1.92,4327.3,4326.8,0.001]
[1760021251970,0.00120001,4327.4,4326.8,0.001]
[1760021252125,2.404,4327.0,4326.8,0.001]
[1760021252328,1.92,4327.1,4326.8,0.001]
[1760021252557,4.324,4327.2,4326.8,0.001]
[1760021252978,2.31096887,4327.2,4326.8,0.001]
[1760021253166,0.00120001,4327.4,4326.8,0.001]
[1760021253167,2.7556426,4327.1,4326.8,0.001]
[1760021253370,4.23112343,4326.9,4326.8,0.001]
[1760021253891,2.31112343,4326.9,4326.8,0.001]
[1760021254082,2.75572343,4326.9,4326.8,0.001]
[1760021254945,0.44580001,4327.4,4326.8,0.001]
[1760021255151,1.92,4327.3,4326.8,0.001]
[1760021255503,2.31112343,4326.9,4326.8,0.001]
[1760021255783,2.31101661,4327.1,4326.8,0.001]
[1760021255945,3.15718,4327.3,4326.8,0.001]
[1760021255946,2.3646,4326.9,4326.8,0.001]
[1760021256149,14.67472343,4326.9,4326.8,0.001]
[1760021256550,2.31117685,4326.8,4325.9,0.001]
[1760021256752,2.31139053,4326.4,4325.9,0.001]
[1760021256992,2.31160425,4326.0,4325.9,0.001]
[1760021257173,4.23160425,4326.0,4325.9,0.001]
[1760021257480,12.30220425,4326.0,4325.9,0.001]
[1760021257682,14.98880809,4326.0,4325.9,0.001]
[1760021257885,15.94338425,4326.0,4325.9,0.001]
[1760021258284,16.86352083,4326.0,4325.9,0.001]
[1760021258483,14.16698425,4326.0,4325.9,0.001]
[1760021258687,26.18798425,4326.0,4325.9,0.001]
[1760021260088,26.18798425,4326.0,4325.1,1e-08]
[1760021260089,3.99021,4325.8,4325.1,1e-08]
[1760021260316,3.99021,4325.8,4324.1,0.005]
[1760021260317,12.61272979,4325.2,4324.1,0.005]
[1760021260519,1.92,4325.0,4324.1,0.005]
[1760021260720,1.92,4324.8,4324.1,0.005]
[1760021261125,10.4794,4324.9,4324.1,0.005]
[1760021261126,0.4394,4324.9,4324.1,0.005]
[1760021261617,0.1152,4324.4,4324.1,0.005]
[1760021261819,1.92,4324.7,4324.1,0.005]
[1760021261987,0.4394,4324.3,4324.1,0.005]
[1760021262190,7.642,4324.2,4324.1,0.005]
[1760021262418,9.588,4324.2,4324.1,0.005]
[1760021262606,10.9862,4324.2,4324.1,0.005]
[1760021262807,1.92,4324.2,4324.1,0.005]
[1760021264624,0.69766,4324.9,4324.1,0.005]
[1760021264795,0.1152,4324.5,4324.1,0.005]
[1760021265138,2.3594,4324.9,4324.1,0.005]
[1760021265340,0.1152,4324.2,4324.1,0.005]
[1760021266121,0.005,4326.9,4324.2,2.31256648]
[1760021266122,0.1152,4324.9,4324.2,2.31256648]
[1760021266306,0.1152,4324.9,4324.1,5.49350493]
[1760021266490,0.4415,4325.9,4324.4,2.31245953]
[1760021266696,0.1152,4325.2,4324.5,0.13832406]
[1760021266898,0.1152,4325.2,4324.5,2.42758153]
[1760021267123,0.1152,4325.2,4324.7,2.31229503]
[1760021267315,0.1152,4325.2,4324.6,0.4366]
[1760021267625,0.1152,4325.2,4324.6,0.55514]
[1760021268127,0.1152,4325.2,4324.5,0.1152]
[1760021268330,0.1152,4325.2,4324.5,0.5518]
[1760021268531,0.4415,4325.1,4324.1,0.005]
[1760021268695,3.36,4325.7,4324.1,2.41]
[1760021268696,1.92,4325.7,4324.1,2.41]
[1760021268897,4.23172216,4325.8,4324.1,2.6291]
[1760021269098,0.46732222,4325.7,4324.2,4.982]
[1760021269315,0.4415,4325.6,4324.2,4.982]
[1760021269514,0.4415,4325.5,4324.2,4.982]
[1760021269818,1.92,4325.3,4324.2,4.982]
[1760021270126,0.4415,4325.4,4324.3,0.02312513]
[1760021270327,0.4415,4325.9,4324.3,0.45972513]
[1760021270532,0.4415,4325.9,4324.4,0.80708251]
[1760021270729,0.4415,4325.9,4324.5,0.02312406]
[1760021271041,0.4549,4326.6,4325.4,2.31191135]
[1760021271332,0.4549,4326.6,4324.6,3.40563198]
[1760021271333,0.007,4326.9,4325.5,10.032]
[1760021271638,0.007,4326.9,4325.8,2.31170687]
[1760021271803,0.28394698,4326.9,4325.6,1.0702]
[1760021272006,0.007,4326.9,4325.7,9.62]
[1760021272313,0.007,4326.9,4326.2,2.3114505]
[1760021272510,0.007,4326.9,4326.3,4.71643077]
[1760021272738,0.007,4326.9,4326.4,7.614]
[1760021272926,0.007,4326.9,4326.5,0.02311337]
[1760021273124,0.007,4326.9,4326.6,0.4366]
[1760021273323,0.007,4326.9,4326.7,2.31121889]
[1760021273524,0.007,4326.9,4326.4,7.614]
[1760021273699,0.007,4326.9,4324.7,10.08547867]
[1760021273906,0.007,4326.9,4325.7,6.865]
[1760021274127,0.46866191,4326.8,4325.7,6.865]
[1760021274438,0.007,4326.9,4325.8,0.65671711]
[1760021274604,0.007,4326.9,4326.3,2.31141471]
[1760021274803,0.007,4326.9,4326.7,2.31118609]
[1760021275008,0.007,4326.9,4326.8,10.0]
[1760021275208,0.007,4326.9,4326.8,12.94377685]
[1760021275450,0.007,4326.9,4326.8,14.90588172]
[1760021277439,1e-08,4326.9,4326.8,14.90588172]
[1760021278243,1e-08,4326.9,4326.8,16.82588172]
[1760021278440,1e-08,4326.9,4326.8,17.28146676]
[1760021278644,1e-08,4326.9,4326.8,17.39666676]
[1760021280112,1e-08,4326.9,4326.8,7.22378307]
[1760021280338,1e-08,4326.9,4326.8,36.42678307]
[1760021281307,1e-08,4326.9,4326.8,16.83978307]
[1760021281541,1e-08,4326.9,4326.8,26.79778307]
[1760021281750,1e-08,4326.9,4326.8,16.40848172]
[1760021281930,1e-08,4326.9,4326.8,23.95748172]
[1760021282758,1e-08,4326.9,4326.8,24.59108172]
[1760021282960,1e-08,4326.9,4326.8,5.02208172]
[1760021283162,1e-08,4326.9,4326.8,24.97557685]
[1760021283733,1e-08,4326.9,4326.8,5.41657685]
[1760021283963,1e-08,4326.9,4326.8,34.58857685]
[1760021284261,1e-08,4326.9,4326.8,46.55858421]
[1760021284462,1e-08,4326.9,4326.8,12.36277685]
[1760021284663,1e-08,4326.9,4326.6,9.615]
[1760021284965,1e-08,4326.9,4326.8,9.934]
[1760021286129,1e-08,4326.9,4326.8,12.24517685]
[1760021286750,1e-08,4326.9,4326.8,9.934]
[1760021287638,1e-08,4326.9,4325.6,0.001]
[1760021287965,1e-08,4326.9,4326.3,2.31139607]
[1760021288168,1e-08,4326.9,4326.4,7.95937549]
[1760021288344,1e-08,4326.9,4326.5,2.42611337]
[1760021288550,1e-08,4326.9,4326.8,2.94477685]
[1760021288744,1e-08,4326.9,4326.8,10.47288861]
[1760021288961,1e-08,4326.9,4326.8,10.89947685]
[1760021289268,1e-08,4326.9,4326.5,2.403]
[1760021289434,1e-08,4326.9,4326.8,7.534]
[1760021290051,1e-08,4326.9,4326.8,9.84517685]
[1760021290463,1e-08,4326.9,4326.8,12.38442658]
[1760021291770,0.00040002,4327.4,4327.3,2.3109098]
[1760021292052,0.00040002,4327.4,4327.3,12.2399098]
[1760021292486,0.00040002,4327.4,4326.8,1.90564973]
[1760021292487,0.00040002,4327.4,4326.8,0.4497]
[1760021292784,0.00040002,4327.4,4327.3,3.3942098]
[1760021292953,0.00040002,4327.4,4327.3,11.47572964]
[1760021293568,0.002,4327.8,4327.7,2.94429621]
[1760021293763,0.002,4327.8,4327.7,12.85029621]
[1760021294057,0.002,4327.8,4327.7,13.29999621]
[1760021294464,0.002,4327.8,4327.7,13.41519621]
[1760021294670,0.002,4327.8,4327.7,14.98779334]
[1760021295371,0.1152,4329.2,4327.8,0.6336]
[1760021295593,0.005,4329.9,4328.8,2.31010903]
[1760021295790,0.005,4329.9,4328.8,12.20410903]